Cogmind - Beta 13 @@@ ROGUE MODE // 2024.04.04 @ 22:32:57 Player: Copyrite Result: Destroyed by G-34 Mercenary with Small Laser Performance ------------- Evolutions (1) 500 Regions Visited (2) 400 Robots Destroyed (19) 95 Value Destroyed (446) 446 Prototype IDs (0) 0 Alien Tech Used (0) 0 Bonus (0) 0 TOTAL SCORE: 1441 Bonus ------- None Cogmind --------- Core Integrity 0/400 Matter 60/300 Energy 265/265 System Corruption 0% Temperature Cool (6) Movement Treading (160) Location -9/Materials Parts ------- > --- POWER (1) -------- Improved Ion Engine > --- PROPULSION (4) --- Light Treads Light Treads Light Treads > --- UTILITY (2) ------ High-capacity Storage Unit Light Armor Plating > --- WEAPON (2) ------- Minigun Minigun > --- INVENTORY (20) --- Heat Sink Minigun Minigun Peak State ------------ > --- POWER ------------ Improved Ion Engine > --- PROPULSION ------- Light Treads Light Treads Light Treads > --- UTILITY ---------- High-capacity Storage Unit Light Armor Plating > --- WEAPON ----------- Minigun Minigun > --- INVENTORY -------- Heat Sink Minigun Minigun [Rating: 13] Favorites ----------- Power Ion Engine Engine Ion Engine Propulsion Aluminum Leg Treads Light Treads Leg Aluminum Leg Wheel Compact Wheel Utility Small Storage Unit Device Terrain Scanner Storage Small Storage Unit Processor Terrain Scan Processor Protection Light Armor Plating Weapon Minigun Energy Gun Medium Laser Ballistic Gun Minigun Launcher Rocket Launcher Slashing Weapon Mining Claw Build | -11 -10 -9 ------- Run | Yrd Mat Mat Slots Evolved 2 | . . 2 Power . | . . . Propulsion 2 | . . 2 Utility . | . . . Weapon . | . . . Parts Attached 27 | 8 4 15 Power 3 | 1 . 2 Engine 3 | 1 . 2 Core . | . . . Reactor . | . . . Propulsion 8 | 4 . 4 Treads 3 | . . 3 Leg 2 | 2 . . Wheel 3 | 2 . 1 Hover . | . . . Flight . | . . . Utility 7 | 1 2 4 Device 2 | . 1 1 Storage 3 | 1 . 2 Processor 1 | . 1 . Hackware . | . . . Protection 1 | . . 1 Artifact . | . . . Weapon 9 | 2 2 5 Energy Gun 3 | 2 1 . Energy Cannon . | . . . Ballistic Gun 2 | . . 2 Ballistic Cannon . | . . . Launcher 3 | . . 3 Special Weapon . | . . . Impact Weapon . | . . . Slashing Weapon 1 | . 1 . Piercing Weapon . | . . . Special Melee Weapon . | . . . Unidentified Prototypes . | . . . Parts Lost 7 | . 2 5 Power 2 | . 1 1 Propulsion 1 | . . 1 Utility . | . . . Weapon 4 | . 1 3 Highest Loss Streak 3 | . 2 3 To Critical Strikes . | . . . Average Slot Usage (%) 66 | . 95 49 Engine 7 | . 13 4 Treads 7 | . . 12 Leg 10 | . 28 . Device 6 | . 11 3 Storage 7 | . 4 8 Processor 3 | . 9 . Protection 1 | . . 1 Energy Gun 7 | . 21 . Ballistic Gun 6 | . . 10 Launcher 5 | . . 8 Slashing Weapon 2 | . 5 . Naked Turns 9 | . 2 7 Heaviest Build 56 | 13 14 56 Greatest Support 60 | 32 20 60 Greatest Overweight (x) 5 | 1 . 5 Average Overweight (x) . | . . 1 Largest Inventory Capacity 20 | 8 8 20 Average Capacity 8 | 6 5 10 Most Carried 5 | 3 5 5 Average Carried 2 | 1 3 1 Final Capacity 20 | 8 5 20 Final Carried 3 | 1 3 3 Class Distribution -------------------- 89% | Mutant 10% | Scavenger-Mutant Dominant Class ---------------- Mutant | -10/Materials Mutant | -9/Materials Resources | -11 -10 -9 ----------- Run | Yrd Mat Mat Matter Collected 575 | 234 86 255 Remotely . | . . . Salvage Created 595 | 70 115 410 Parts 43 | 2 11 30 Haulers Intercepted 1 | . . 1 Recyclers Shooed 1 | . . 1 Parts Field Recycled . | . . . Retrieved Matter . | . . . Parts Self-Destructed . | . . . Prevented . | . . . Kills | -11 -10 -9 ------- Run | Yrd Mat Mat Combat Hostiles Destroyed 11 | . 2 9 Guns 9 | . 2 7 AOE 2 | . . 2 Classes Destroyed 8 | 1 3 4 Worker 2 | . 1 1 Builder 2 | . 1 1 Hauler 1 | . . 1 Recycler 2 | 1 . 1 Mechanic 1 | . . 1 Swarmer 3 | . . 3 Grunt 3 | . 2 1 Sentry 5 | . . 5 Best Kill Streak 5 | 1 2 5 Combat Bots Only 3 | . 1 3 Max Kills in Single Turn 1 | 1 1 1 Gunslinging . | . . . Exploded 1 | . . 1 Melee . | . . . Uniques/NPCs Destroyed . | . . . Combat | -11 -10 -9 -------- Run | Yrd Mat Mat Hostile Shots Fired 177 | . 64 113 Missed 55 | . 20 35 Damage Taken 1490 | . 426 1064 Core 546 | . 146 400 Absorbed by Shields . | . . . Core Remaining (%) 70 | 100 41 . Volleys Fired 51 | 5 13 33 Largest 2 | 2 2 2 Hottest 90 | 90 90 66 Shots Fired 83 | 6 19 58 Gun 62 | 6 19 37 Cannon . | . . . Launcher 21 | . . 21 Special . | . . . Kinetic 37 | . . 37 Thermal 25 | 6 19 . Explosive 21 | . . 21 Electromagnetic . | . . . Robot Hit Streak 14 | 4 6 14 Robot Miss Streak 3 | 1 3 3 Penetration Max . | . . . Secondary Targets 3 | . . 3 Max Gunslinging Chain 1 | . . 1 Shots Hit Robots 54 | 5 14 35 Core Hits 29 | 2 7 20 Critical Kills . | . . . Critical Parts Destroyed . | . . . Critical Strikes . | . . . Melee Attacks 5 | . 5 . Impact . | . . . Slashing 5 | . 5 . Piercing . | . . . Sneak Attacks 2 | . 2 . Combat Hostiles . | . . . Follow-up Attacks . | . . . Damage Inflicted 1126 | 62 277 787 Guns 634 | 62 136 436 Cannons . | . . . Explosions 339 | . . 339 Melee 141 | . 141 . Ramming 12 | . . 12 Kinetic 436 | . . 436 Thermal 198 | 62 136 . Explosive 339 | . . 339 Electromagnetic . | . . . Impact . | . . . Slashing 141 | . 141 . Piercing . | . . . Highest Corruption . | . . . Average Corruption . | . . . Corruption Purged . | . . . Corruption Blocked . | . . . Overload Shots . | . . . Overflow Damage 22 | . 4 18 Projectiles . | . . . Explosions 18 | . . 18 Melee 4 | . 4 . Knockbacks . | . . . Impact . | . . . Kinetic . | . . . Secondary . | . . . Self-Inflicted Damage 5 | . . 5 Shots . | . . . Rammed 2 | . . 2 Targets Rammed 2 | . . 2 Kicked . | . . . Crushed . | . . . Highest Temperature 95 | 40 95 32 Average Temperature 24 | 19 35 12 Received Heat Transfer 462 | . 132 330 Siege Activations . | . . . Robots Corrupted . | . . . Combat Hostiles . | . . . Parts Fried . | . . . Impact Corruptions . | . . . Robots Melted . | . . . Combat Hostiles . | . . . Parts Melted . | . . . Heat Transferred 556 | 173 383 . Parts Sabotaged . | . . . Parts Stolen . | . . . Parts Stripped . | . . . Power Chain Reactions . | . . . Alert | -11 -10 -9 ------- Run | Yrd Mat Mat Peak Influence 391 | 5 108 391 Initial 37 | . 3 37 Average 173 | 2 60 272 Maximum Alert Level 1 | . . 1 Low Security (%) 52 | 100 100 15 Level 1 47 | . . 84 Level 2 . | . . . Level 3 . | . . . Level 4 . | . . . Level 5 . | . . . High Security . | . . . Max Security . | . . . Squads Dispatched 3 | . 2 1 Investigation 1 | . . 1 Extermination . | . . . Reinforcement 2 | . 2 . Assault . | . . . Garrison . | . . . Intercept . | . . . Searches Triggered . | . . . Construction Impeded . | . . . Haulers Reinforced . | . . . Active Scanning Responses . | . . . Cargo Convoy Interrupts . | . . . Stealth | -11 -10 -9 --------- Run | Yrd Mat Mat Distress Signals 2 | . 1 1 Communications Jammed . | . . . Distress Signals . | . . . Times Spotted 24 | . 12 12 Peak Tracking Total 10 | . 10 3 Tactical Retreats . | . . . Traps | -11 -10 -9 ------- Run | Yrd Mat Mat Traps Triggered 1 | . . 1 Indirectly . | . . . Trap Hack Attempts . | . . . Triggered . | . . . Disarmed . | . . . Reprogrammed . | . . . Reused . | . . . Traps Extracted . | . . . Installed . | . . . Triggered . | . . . Machines | -11 -10 -9 ---------- Run | Yrd Mat Mat Machines Disabled 5 | . . 5 Max in Single Turn 2 | . . 2 Machines Repaired . | . . . Machines Dismantled . | . . . Machines Sabotaged . | . . . Overloaded Fab Kills . | . . . Hacking | -11 -10 -9 --------- Run | Yrd Mat Mat Machines Accessed 2 | . 2 . Terminals 2 | . 2 . Fabricators . | . . . Repair Stations . | . . . Recycling Units . | . . . Scanalyzers . | . . . Garrison Access . | . . . Total Hacks 3 | . 3 . Successful 1 | . 1 . Failed 2 | . 2 . Catastrophic 1 | . 1 . Database Lockouts . | . . . Manual . | . . . Terminals 3 | . 3 . Fabricators . | . . . Repair Stations . | . . . Recycling Units . | . . . Scanalyzers . | . . . Garrison Access . | . . . Terminal Hacks 1 | . 1 . Hauler Manifests 1 | . 1 . Fabricator Hacks . | . . . Repair Station Hacks . | . . . Recycling Unit Hacks . | . . . Scanalyzer . | . . . Garrison Access Hacks . | . . . Unauthorized Hacks . | . . . Terminals . | . . . Fabricators . | . . . Repair Stations . | . . . Recycling Units . | . . . Scanalyzers . | . . . Garrison Access . | . . . Data Cores Recovered . | . . . Used . | . . . Hacking Detections 1 | . 1 . Full Trace Events 1 | . 1 . Feedback Events . | . . . Feedback Blocked . | . . . Robot Schematics Acquired . | . . . Robots Built . | . . . Authchips . | . . . Time . | . . . Total Robot Build Rating . | . . . Part Schematics Acquired . | . . . Parts Built . | . . . Authchips . | . . . Time . | . . . Total Part Build Rating . | . . . Parts Repaired . | . . . Time . | . . . Parts Recycled . | . . . Recycled Matter . | . . . Retrieved Matter . | . . . Retrieved Components . | . . . Parts Scanalyzed . | . . . Part Schematics Acquired . | . . . Parts Damaged . | . . . Bothacking | -11 -10 -9 ------------ Run | Yrd Mat Mat Used RIF Installer . | . . . Robots Hacked . | . . . Non-combat . | . . . Combat . | . . . Robot Hacks Applied . | . . . Relay Couplers Released . | . . . Fabnet Peak Effective % . | . . . Robots Rewired . | . . . Allies Hacked . | . . . Hacks Repelled . | . . . Allies | -11 -10 -9 -------- Run | Yrd Mat Mat Total Allies . | . . . Largest Group . | . . . Highest-Rated Group . | . . . Highest-Rated Ally . | . . . Total Orders . | . . . Ally Attacks . | . . . Total Damage . | . . . Kills . | . . . Allies Corrupted . | . . . Allies Melted . | . . . Intel | -11 -10 -9 ------- Run | Yrd Mat Mat Robot Analysis Total . | . . . Derelict Logs Recovered . | . . . Drone Launches . | . . . Drone Recoveries . | . . . Exploration | -11 -10 -9 ------------- Run | Yrd Mat Mat Turns Passed 883 | 97 290 496 Spaces Moved 469 | 66 183 220 Core 132 | 18 3 111 Treads 107 | . . 107 Legs 218 | 38 180 . Wheels 12 | 10 . 2 Hover . | . . . Flight . | . . . Fastest Speed 50 | 50 50 50 Average Speed 143 | 107 118 174 Slowest Speed 300 | 120 120 300 Overloaded Moves . | . . . Propulsion Burnouts . | . . . Robots Hopped . | . . . Cave-ins Triggered . | . . . Exploration Rate (%) 20 | 5 33 22 Regions Visited 2 Branch Regions . Pre-discovered Areas . | . . . Known Exits Taken . | . . . Unknown Exits Taken 2 | 1 1 . Scrap Searched . | . . . Spaces Dug . | . . . Terrain Destroyed 134 | . . 134 Melee . | . . . Projectile . | . . . AOE 134 | . . 134 Terrain Rammed . | . . . Walls Destroyed . | . . . Machines Disabled . | . . . Actions | -11 -10 -9 --------- Run | Yrd Mat Mat Total 587 | 83 227 277 Wait 11 | . 11 . Move 467 | 65 182 220 Hop . | . . . Pick Up 13 | 3 4 6 Fast Attach 15 | 6 2 7 Attach 6 | . . 6 Detach . | . . . Swap 6 | 2 2 2 Drop 11 | 2 8 1 Fire 51 | 5 13 33 Melee 5 | . 5 . Ram 2 | . . 2 Kick . | . . . Crush . | . . . Escape Stasis . | . . . Rewire . | . . . Trap . | . . . Miscellaneous . | . . . Route ------- -11/Scrapyard -10/Materials -9/Materials (discovered 2 exits: [*Min] / [*Sto]) History --------- Turn | Location | Event 4 | -11/Scrapyard | Discovered new exit (range 15) 98 | -11/Scrapyard | Entered Materials 307 | -10/Materials | Build established: Mutant 372 | -10/Materials | Discovered new exit (range 12) 387 | -10/Materials | Core integrity fell below 50% 388 | -10/Materials | Entered another Materials area 388 | -9/Materials | Evolved 2 slots: Propulsion x2 614 | -9/Materials | Core integrity fell below 50% 640 | -9/Materials | Lost 3 parts (1p2w) 645 | -9/Materials | Core integrity fell below 20% 789 | -9/Materials | Discovered new exit (range 4) 847 | -9/Materials | Discovered new exit (range 13) 884 | -9/Materials | Destroyed by G-34 Mercenary with Small Laser Last Messages --------------- EXIT=FOUND Critical hit (Burn: +37). Y-45 Defender destroyed. Acquired Lgt. Treads. Acquired Lgt. Armor Plating. Acquired Imp. Ion Engine. Acquired 53 matter. EXIT=FOUND S-10 Pest destroyed. Switching to secondary target: S-10 Pest. S-10 Pest destroyed. Switching to secondary target: S-10 Pest. K-01 Serf collects debris. S-10 Pest destroyed. R-06 Scavenger collects Flight Unit. K-01 Serf collects debris. K-01 Serf destroyed. W-16 Scout sends out distress signal. R-06 Scavenger collects Flight Unit. R-06 Scavenger destroyed. Map ----- +----------------------------------------------------+ | | | | | | | | | | | ?????????????????????????????????????? | | ?????????????????????????????????????? | | ?????????????????????????????????????? | | ?????????????????????????????????????? | | ?????????????????????????????????????? | | ?????????????????????????????????????? | | ?????????????????????????????????????? | | ?????????????????????????????????????? | | ?????????????????????????????????????? | | ????????? ???####????????????????????? | | ????????# ?##"""##???????????????????? | | ????????/ ?#"!!!"##??????????????????? | | ???""???# ?"" ""#??????????????????? | | ????""??# ? #??????????????????? | | ????? ?# ?? < #??????????????????? | | ?????#"## ?? #??????????????????? | | ?????# #? #??????????????????? | | ?????# #? #???????????????????? | | ???????# %### #????????????????????? | | ???????# % #????????????????????? | | ???????#[%[ !@= #????????????????????? | | ???????#==* =%% #????????????????????? | | ???????# =! #????????????????????? | | ???????# """ #????????????????????? | | ########" """ #????????????????????? | | # #" """w #????????????????????? | | # #" #????????????????????? | | # #T g#????????????????????? | | # #" """ #????????????????????? | | # #" """ ######???????????????? | | # #" """w ????????????? | | # + ????????????? | | # [ # ????????????? | | # ## ####+#######???????????????? | | # ## #??????????????????????????? | | # ## #??????????????????????????? | | # ## #??????????????????????????? | | # ## #??????????????????????????? | | ######+## #??????????????????????????? | | ?????# #??????????????????????????? | | ?????# #??????????????????????????? | | ?????# #??????????????????????????? | | ?????# #??????????????????????????? | | ?????# #??????????????????????????? | | ?????# #??????????????????????????? | +----------------------------------------------------+ Best States ------------- Heat Dissipation 38 Energy Generation 12 Energy Capacity 265 Matter Stores 300 Matter Capacity 300 Sight Range 16 Terrain Scan Range 14 Terrain Scan Density 85 Armor Coverage 150 Evasion (%) 55 Recoil Reduction 3 Item Schematics ----------------- None Robot Schematics ------------------ None Fabricated ------------ Nothing Alien Tech Used ----------------- None Achievements -------------- None Challenges ------------ None Game ------ Seed WeaponsBombardmentMace Manual? 0 Play Time 00:10:28 Cumulative 5.7 hours Start 2024.04.04 @ 22:23:23 End 2024.04.04 @ 22:32:57 Sessions 1 Manual Loads 0 Difficulty Rogue Special Mode None Game No. 12 Rogue 12 Adventurer 0 Explorer 0 Win Type - Total 0 Types 0/0/0/0/0/0/0/0/0 Lore% 8 Gallery% 10 Achievement% 11 Wizard Run 0 Options --------- Layout 1 ASCII 0 Keyboard 0 Movement Numpad Keybinds 0 Fullscreen 1 Font 32/SmallcapsGlow Map View 50x35 Zoom Use 0% Tactical HUD 0 Map Filters NONE Filters NONE Steam 1 RUN: ed365e2a-571c-4ce3-8948-8af9261e84ca